fUSD/lending_fUSD_20250220
["ID","MTS","AMOUNT","RATE_DAILY","PERIOD"]
[353819497,1740077449761,-500.0,0.00011205,2]
[353819499,1740077449771,-500.0,0.00011205,2]
[353819510,1740077449967,-500.0,0.00011205,2]
[353819512,1740077449976,-500.0,0.00011205,2]
[353819514,1740077449986,-500.0,0.00011205,2]
[353819516,1740077449995,-500.0,0.00011205,2]
[353819518,1740077450005,-500.0,0.00011205,2]
[353819520,1740077450016,-500.0,0.00011205,2]
[353819522,1740077450026,-500.0,0.00011205,2]
[353819524,1740077450036,-617.52,0.00011205,2]
[353819526,1740077450048,-500.0,0.00011205,2]
[353819528,1740077450058,-500.0,0.00011205,2]
[353819529,1740077450067,-500.0,0.00011205,2]
[353819532,1740077450077,-500.0,0.00011205,2]
[353819534,1740077450087,-150.0,0.00011205,2]
[353819536,1740077450097,-1054.0,0.00011205,2]
[353819537,1740077450106,-568.00306616,0.0001121,2]
[353819539,1740077450115,-150.0,0.00011233,2]
[353819542,1740077450125,-1054.0,0.00011233,2]
[353819543,1740077450135,-214.878892,0.0001125,5]
[353819545,1740077450144,-172.548647,0.0001125,5]
[353819548,1740077450154,-249.7964,0.0001126,2]
[353819549,1740077450163,-1054.0,0.0001126,2]
[353819551,1740077450173,-151.0,0.00011281,2]
[353819553,1740077450182,-3608.9420508,0.00011281,2]
[353819556,1740077450192,-795.17,0.00011287,2]
[353819558,1740077450202,-157.841228,0.00011287,2]
[353819560,1740077450212,-179.147095,0.00011287,2]
[353819562,1740077450222,-500.0,0.00011287,2]
[353819563,1740077450231,-500.0,0.00011287,2]
[353819565,1740077450240,-500.0,0.00011287,2]
[353819567,1740077450250,-371.29,0.00011287,2]
[353819569,1740077450259,-159.86,0.00011287,2]
[353819571,1740077450269,-500.0,0.00011287,2]
[353819573,1740077450278,-500.0,0.00011287,2]
[353819575,1740077450287,-560.90088733,0.00011287,2]
[353819577,1740077450297,-500.0,0.00011287,2]
[353819579,1740077450306,-500.0,0.00011287,2]
[353819581,1740077450316,-500.0,0.00011287,2]
[353819583,1740077450325,-500.0,0.00011287,2]
[353819585,1740077450335,-500.0,0.00011287,2]
[353819587,1740077450344,-583.98,0.00011287,2]
[353819589,1740077450353,-500.0,0.00011287,2]
[353819592,1740077450364,-500.0,0.00011287,2]
[353819593,1740077450374,-500.0,0.00011287,2]
[353819595,1740077450384,-500.0,0.00011287,2]
[353819597,1740077450394,-235.44,0.00011287,2]
[353819599,1740077450404,-483.38004605,0.00011287,2]
[353819601,1740077450414,-500.0,0.00011287,2]
[353819603,1740077450424,-500.0,0.00011287,2]
[353819605,1740077450434,-425.70057096,0.00011287,2]
[353819607,1740077450444,-432.17,0.00011287,2]
[353819610,1740077450454,-500.0,0.00011287,2]
[353819611,1740077450464,-500.0,0.00011287,2]
[353819613,1740077450474,-500.0,0.00011287,2]
[353819615,1740077450484,-500.0,0.00011287,2]
[353819618,1740077450493,-500.0,0.00011287,2]
[353819620,1740077450503,-500.0,0.00011287,2]
[353819621,1740077450513,-500.0,0.00011287,2]
[353819624,1740077450523,-629.32404154,0.00011287,2]
[353819626,1740077450533,-451.88,0.00011287,2]
[353819628,1740077450543,-500.0,0.00011287,2]
[353819629,1740077450553,-500.0,0.00011287,2]
[353819632,1740077450563,-500.0,0.00011287,2]
[353819634,1740077450573,-1054.0,0.00011287,2]
[353819636,1740077450582,-28057.63561789,0.00011289,2]
[353819638,1740077450592,-1054.0,0.00011315,2]
[353819640,1740077450602,-166.66,0.00011329,2]
[353819642,1740077450612,-1054.0,0.00011342,2]
[353819644,1740077450622,-795.17,0.00011369,2]
[353819646,1740077450632,-179.147095,0.00011369,2]
[353819648,1740077450641,-519.8,0.00011369,2]
[353819650,1740077450651,-500.0,0.00011369,2]
[353819652,1740077450661,-427.08,0.00011369,2]
[353819654,1740077450671,-358.4,0.00011369,2]
[353819656,1740077450681,-500.0,0.00011369,2]
[353819658,1740077450690,-452.84,0.00011369,2]
[353819660,1740077450700,-500.0,0.00011369,2]
[353819662,1740077450710,-369.94,0.00011369,2]
[353819664,1740077450720,-500.0,0.00011369,2]
[353819666,1740077450729,-500.0,0.00011369,2]
[353819668,1740077450739,-583.98,0.00011369,2]
[353819670,1740077450748,-340.14,0.00011369,2]
[353819672,1740077450758,-242.34,0.00011369,2]
[353819674,1740077450768,-200.62,0.00011369,2]
[353819676,1740077450778,-500.0,0.00011369,2]
[353819678,1740077450787,-500.0,0.00011369,2]
[353819680,1740077450797,-163.5,0.00011369,2]
[353819682,1740077450806,-430.87,0.00011369,2]
[353819684,1740077450815,-500.0,0.00011369,2]
[353819686,1740077450825,-500.0,0.00011369,2]
[353819688,1740077450834,-500.0,0.00011369,2]
[353819690,1740077450843,-500.0,0.00011369,2]
[353819692,1740077450853,-500.0,0.00011369,2]
[353819694,1740077450866,-500.0,0.00011369,2]
[353819696,1740077450876,-500.0,0.00011369,2]
[353819698,1740077450885,-500.0,0.00011369,2]
[353819700,1740077450895,-500.0,0.00011369,2]
[353819702,1740077450905,-1054.0,0.0001137,2]
[353819704,1740077450915,-150.0,0.00011376,2]
[353819706,1740077450924,-1054.0,0.00011397,2]
[353819708,1740077450934,-1054.0,0.00011424,2]
[353819710,1740077450943,-174.41,0.00011447,2]
[353819712,1740077450952,-1054.0,0.00011452,2]
[353819714,1740077450962,-198.095966,0.00011452,2]
[353819716,1740077450973,-795.17,0.00011452,2]
[353819718,1740077450983,-157.841228,0.00011452,2]
[353819720,1740077450993,-179.147095,0.00011452,2]
[353819722,1740077451002,-500.0,0.00011452,2]
[353819724,1740077451013,-500.0,0.00011452,2]
[353819726,1740077451022,-500.0,0.00011452,2]
[353819728,1740077451032,-500.0,0.00011452,2]
[353819730,1740077451043,-635.91544947,0.00011452,2]
[353819732,1740077451055,-583.98,0.00011452,2]
[353819735,1740077451065,-500.0,0.00011452,2]
[353819737,1740077451075,-500.0,0.00011452,2]
[353819739,1740077451087,-500.0,0.00011452,2]
[353819741,1740077451096,-500.0,0.00011452,2]
[353819743,1740077451107,-500.0,0.00011452,2]
[353819744,1740077451116,-500.0,0.00011452,2]
[353819747,1740077451126,-500.0,0.00011452,2]
[353819749,1740077451136,-500.0,0.00011452,2]
[353819751,1740077451147,-500.0,0.00011452,2]
[353819753,1740077451156,-500.0,0.00011452,2]
[353819755,1740077451166,-1054.0,0.00011479,2]
[353819757,1740077451176,-1054.0,0.00011507,2]
[353819759,1740077451186,-2751.0,0.00011507,2]
[353819761,1740077451196,-568.00306616,0.00011521,2]
[353819763,1740077451206,-164.2215952,0.00011522,2]
[353819765,1740077451216,-1054.0,0.00011534,2]
[353819767,1740077451226,-795.17,0.00011534,2]
[353819769,1740077451235,-157.841228,0.00011534,2]
[353819771,1740077451245,-179.147095,0.00011534,2]
[353819773,1740077451255,-500.0,0.00011534,2]
[353819775,1740077451265,-312.02,0.00011534,2]
[353819777,1740077451276,-500.0,0.00011534,2]
[353819779,1740077451285,-500.0,0.00011534,2]
[353819781,1740077451295,-583.98,0.00011534,2]
[353819784,1740077451306,-500.0,0.00011534,2]
[353819785,1740077451316,-500.0,0.00011534,2]
[353819788,1740077451325,-328.1917,0.00011534,2]
[353819790,1740077451335,-500.0,0.00011534,2]
[353819791,1740077451344,-500.0,0.00011534,2]
[353819793,1740077451353,-500.0,0.00011534,2]
[353819796,1740077451363,-500.0,0.00011534,2]
[353819798,1740077451373,-500.0,0.00011534,2]
[353819799,1740077451382,-500.0,0.00011534,2]
[353819801,1740077451392,-500.0,0.00011534,2]
[353819803,1740077451401,-1054.0,0.00011561,2]
[353819805,1740077451411,-28057.63561789,0.00011567,2]
[353819807,1740077451421,-150.0,0.00011582,2]
[353819809,1740077451431,-1054.0,0.00011589,2]
[353819811,1740077451441,-795.17,0.00011616,2]
[353819813,1740077451451,-157.841228,0.00011616,2]
[353819815,1740077451460,-179.147095,0.00011616,2]
[353819817,1740077451470,-500.0,0.00011616,2]
[353819820,1740077451480,-500.0,0.00011616,2]
[353819822,1740077451489,-500.0,0.00011616,2]
[353819824,1740077451499,-583.98,0.00011616,2]
[353819826,1740077451508,-498.84,0.00011616,2]
[353819828,1740077451520,-500.0,0.00011616,2]
[353819829,1740077451530,-500.0,0.00011616,2]
[353819831,1740077451539,-500.0,0.00011616,2]
[353819833,1740077451549,-500.0,0.00011616,2]
[353819836,1740077451559,-253.06,0.00011616,2]
[353819838,1740077451570,-500.0,0.00011616,2]
[353819840,1740077451581,-500.0,0.00011616,2]
[353819842,1740077451590,-500.0,0.00011616,2]
[353819844,1740077451599,-1054.0,0.00011616,2]
[353819846,1740077451609,-500.0,0.00011638,2]
[353819848,1740077451619,-500.0,0.00011638,2]
[353819850,1740077451628,-406.69797652,0.00011638,2]
[353819852,1740077451637,-159.77473559,0.00011638,2]
[353819854,1740077451646,-1071.41222396,0.00011644,2]
[353819856,1740077451655,-166.66,0.0001166,2]
[353819858,1740077451665,-500.0,0.00011685,2]
[353819860,1740077451675,-795.17,0.00011698,2]
[353819861,1740077451684,-500.0,0.00011698,2]
[353819862,1740077451693,-500.0,0.00011698,2]
[353819863,1740077451702,-500.0,0.00011698,2]
[353819864,1740077451711,-583.98,0.00011698,2]
[353819865,1740077451720,-500.0,0.00011698,2]
[353819866,1740077451729,-500.0,0.00011698,2]
[353819867,1740077451738,-242.17,0.00011698,2]
[353819868,1740077451747,-500.0,0.00011698,2]
[353819869,1740077451756,-500.0,0.00011698,2]
[353819870,1740077451766,-500.0,0.00011698,2]
[353819872,1740077451776,-500.0,0.00011698,2]
[353819874,1740077451786,-172.124905,0.00011762,2]
[353819876,1740077451796,-151.399335,0.00011762,2]
[353819878,1740077451805,-795.17,0.0001178,2]
[353819880,1740077451815,-500.0,0.0001178,2]
[353819882,1740077451825,-500.0,0.0001178,2]
[353819884,1740077451835,-500.0,0.0001178,2]
[353819886,1740077451844,-583.98,0.0001178,2]
[353819888,1740077451854,-500.0,0.0001178,2]
[353819890,1740077451863,-500.0,0.0001178,2]
[353819892,1740077451872,-500.0,0.0001178,2]
[353819894,1740077451882,-500.0,0.0001178,2]
[353819896,1740077451891,-637.15338824,0.0001178,2]
[353819898,1740077451901,-500.0,0.0001178,2]
[353819900,1740077451911,-568.00306616,0.00011831,2]
[353819902,1740077451921,-28057.63561789,0.00011844,2]
[353819904,1740077451931,-795.17,0.00011863,2]
[353819906,1740077451940,-500.0,0.00011863,2]
[353819908,1740077451950,-500.0,0.00011863,2]
[353819910,1740077451960,-500.0,0.00011863,2]
[353819912,1740077451969,-583.98,0.00011863,2]
[353819914,1740077451979,-500.0,0.00011863,2]
[353819916,1740077451989,-500.0,0.00011863,2]
[353819918,1740077451998,-588.07,0.00011863,2]
[353819920,1740077452007,-500.0,0.00011863,2]
[353819922,1740077452018,-479.59295816,0.00011863,2]
[353819924,1740077452027,-689.01058,0.000119,2]
[353819926,1740077452040,-795.17,0.00011945,2]
[353819928,1740077452050,-500.0,0.00011945,2]
[353819930,1740077452059,-500.0,0.00011945,2]
[353819932,1740077452068,-500.0,0.00011945,2]
[353819934,1740077452078,-583.98,0.00011945,2]
[353819936,1740077452087,-500.0,0.00011945,2]
[353819938,1740077452097,-500.0,0.00011945,2]
[353819940,1740077452107,-284.26,0.00011945,2]
[353819942,1740077452116,-11.62666198,0.00011951,2]
[353819944,1740077452126,-1569.748,0.00011951,2]
[353819946,1740077452135,-600.0,0.00012,2]
[353819948,1740077452144,-795.17,0.00012027,2]
[353819950,1740077452154,-500.0,0.00012027,2]
[353819952,1740077452163,-500.0,0.00012027,2]
[353819954,1740077452172,-500.0,0.00012027,2]
[353819956,1740077452182,-583.98,0.00012027,2]
[353819958,1740077452192,-456.06,0.00012027,2]
[353819960,1740077452202,-500.0,0.00012027,2]
[353819962,1740077452212,-1100.52,0.00012054,2]
[353819964,1740077452222,-795.17,0.00012109,2]
[353819966,1740077452231,-339.36863247,0.00012109,2]
[353819968,1740077452240,-500.0,0.00012109,2]
[353819970,1740077452250,-459.02,0.00012109,2]
[353819972,1740077452260,-583.98,0.00012109,2]
[353819974,1740077452270,-500.0,0.00012109,2]
[353819976,1740077452279,-28057.63561789,0.00012122,2]
[353819978,1740077452289,-568.00306616,0.00012141,2]
[353819980,1740077452298,-1000.0,0.00012186,2]
[353819982,1740077452308,-795.17,0.00012191,2]
[353819984,1740077452317,-500.0,0.00012191,2]
[353819990,1740077452366,-583.98,0.00012191,2]
[353819992,1740077452376,-519.58,0.00012191,2]
[353819994,1740077452385,-150.0,0.00012192,2]
[353819996,1740077452394,-299.0820543,0.00012192,2]
[353819998,1740077452403,-150.0,0.00012192,2]
[353820000,1740077452412,-1141.25,0.00012197,2]
[353820002,1740077452421,-63547.31086463,0.000122,2]
[353820004,1740077452430,-152.0,0.00012258,3]
[353820006,1740077452439,-1000.0,0.00012261,2]
[353820008,1740077452449,-150.0,0.00012262,2]
[353820010,1740077452458,-795.17,0.00012273,2]
[353820012,1740077452467,-500.0,0.00012273,2]
[353820014,1740077452477,-583.98,0.00012273,2]
[353820016,1740077452487,-5486.0,0.00012301,2]
[353820018,1740077452497,-602.43914949,0.00012323,2]
[353820020,1740077452507,-200.0,0.00012325,2]
[353820022,1740077452519,-1100.52,0.00012328,2]
[353820024,1740077452528,-151.0,0.00012329,2]
[353820026,1740077452537,-151.194069,0.00012329,2]
[353820028,1740077452547,-151.0,0.00012329,2]
[353820030,1740077452556,-151.0,0.00012329,2]
[353820032,1740077452566,-151.83784,0.00012329,2]
[353820034,1740077452576,-151.0,0.00012329,2]
[353820036,1740077452586,-151.0,0.00012329,2]
[353820038,1740077452596,-151.0,0.00012329,2]
[353820040,1740077452606,-151.0,0.00012329,2]
[353820042,1740077452616,-151.0,0.00012329,2]
[353820043,1740077452625,-151.860429,0.00012329,2]
[353820045,1740077452635,-151.944697,0.00012329,2]
[353820046,1740077452644,-151.0,0.00012329,2]
[353820048,1740077452654,-151.0,0.00012329,2]
[353820050,1740077452664,-151.0,0.00012329,2]
[353820051,1740077452674,-151.0,0.00012329,2]
[353820053,1740077452683,-151.0,0.00012329,2]
[353820054,1740077452693,-151.0,0.00012329,2]
[353820056,1740077452703,-151.0,0.00012329,2]
[353820058,1740077452713,-151.0,0.00012329,2]
[353820059,1740077452722,-151.0,0.00012329,2]
[353820061,1740077452732,-217.594565,0.00012329,2]
[353820062,1740077452741,-178.821877,0.00012329,2]
[353820064,1740077452751,-178.821877,0.00012329,2]
[353820066,1740077452761,-178.821877,0.00012329,2]
[353820067,1740077452774,-178.821877,0.00012329,2]
[353820069,1740077452784,-178.821871,0.00012329,2]
[353820071,1740077452794,-151.0,0.00012329,2]
[353820072,1740077452803,-180.05816,0.00012329,2]
[353820074,1740077452813,-151.0,0.00012329,2]
[353820076,1740077452823,-151.0,0.00012329,2]
[353820078,1740077452833,-151.0,0.00012329,2]
[353820079,1740077452843,-151.0,0.00012329,2]
[353820081,1740077452852,-151.0,0.00012329,2]
[353820082,1740077452862,-151.0,0.00012329,2]
[353820084,1740077452871,-151.0,0.00012329,2]
[353820086,1740077452881,-151.0,0.00012329,2]
[353820087,1740077452890,-151.0,0.00012329,2]
[353820089,1740077452900,-151.0,0.00012329,2]
[353820091,1740077452909,-151.421625,0.00012329,2]
[353820092,1740077452919,-151.0,0.00012329,2]
[353820094,1740077452928,-152.247541,0.00012329,2]
[353820096,1740077452938,-295.230823,0.00012329,2]
[353820097,1740077452947,-151.319073,0.00012329,2]
[353820099,1740077452957,-151.0,0.00012329,2]
[353820101,1740077452966,-151.0,0.00012329,2]
[353820102,1740077452976,-151.0,0.00012329,2]
[353820104,1740077452986,-151.0,0.00012329,2]
[353820106,1740077452995,-151.0,0.00012329,2]
[353820108,1740077453005,-151.0,0.00012329,2]
[353820109,1740077453015,-151.0,0.00012329,2]
[353820111,1740077453025,-151.0,0.00012329,2]
[353820113,1740077453034,-151.0,0.00012329,2]
[353820115,1740077453047,-151.0,0.00012329,2]
[353820116,1740077453056,-151.0,0.00012329,2]
[353820118,1740077453066,-151.176283,0.00012329,2]
[353820120,1740077453074,-151.0,0.00012329,2]
[353820122,1740077453085,-151.0,0.00012329,2]
[353820123,1740077453094,-151.0,0.00012329,2]
[353820125,1740077453103,-151.0,0.00012329,2]
[353820127,1740077453112,-151.0,0.00012329,2]
[353820129,1740077453125,-151.0,0.00012329,2]
[353820130,1740077453135,-151.0,0.00012329,2]
[353820132,1740077453144,-151.0,0.00012329,2]
[353820134,1740077453153,-151.0,0.00012329,2]
[353820136,1740077453162,-151.0,0.00012329,2]
[353820137,1740077453172,-151.0,0.00012329,2]
[353820139,1740077453181,-151.0,0.00012329,2]
[353820141,1740077453191,-151.0,0.00012329,2]
[353820143,1740077453200,-151.0,0.00012329,2]
[353820144,1740077453210,-151.0,0.00012329,2]
[353820146,1740077453219,-151.0,0.00012329,2]
[353820148,1740077453228,-151.0,0.00012329,2]
[353820149,1740077453237,-151.0,0.00012329,2]
[353820151,1740077453247,-151.0,0.00012329,2]
[353820153,1740077453256,-151.0,0.00012329,2]
[353820155,1740077453266,-151.0,0.00012329,2]
[353820157,1740077453277,-151.0,0.00012329,2]
[353820158,1740077453286,-151.0,0.00012329,2]
[353820160,1740077453295,-151.0,0.00012329,2]
[353820162,1740077453304,-151.0,0.00012329,2]
[353820164,1740077453314,-151.0,0.00012329,2]
[353820165,1740077453323,-151.0,0.00012329,2]
[353820167,1740077453332,-151.144888,0.00012329,2]
[353820169,1740077453342,-151.0,0.00012329,2]
[353820171,1740077453351,-151.0,0.00012329,2]
[353820172,1740077453360,-151.0,0.00012329,2]
[353820174,1740077453369,-151.0,0.00012329,2]
[353820176,1740077453379,-151.878976,0.00012329,2]
[353820178,1740077453388,-151.0,0.00012329,2]
[353820180,1740077453397,-151.0,0.00012329,2]
[353820182,1740077453406,-151.0,0.00012329,2]
[353820184,1740077453415,-151.0,0.00012329,2]
[353820186,1740077453424,-151.0,0.00012329,2]
[353820188,1740077453433,-151.0,0.00012329,2]
[353820190,1740077453442,-152.362582,0.00012329,2]
[353820192,1740077453451,-151.0,0.00012329,2]
[353820194,1740077453460,-151.0,0.00012329,2]
[353820196,1740077453469,-151.0,0.00012329,2]
[353820198,1740077453478,-151.0,0.00012329,2]
[353820200,1740077453487,-151.0,0.00012329,2]
[353820202,1740077453497,-151.0,0.00012329,2]
[353820204,1740077453507,-151.0,0.00012329,2]
[353820205,1740077453519,-181.392086,0.00012329,2]
[353820208,1740077453528,-151.0,0.00012329,2]
[353820209,1740077453538,-151.195351,0.00012329,2]
[353820211,1740077453547,-151.0,0.00012329,2]
[353820213,1740077453557,-151.0,0.00012329,2]
[353820216,1740077453567,-151.0,0.00012329,2]
[353820217,1740077453576,-173.912584,0.00012329,2]
[353820219,1740077453586,-151.0,0.00012329,2]
[353820221,1740077453595,-88.57909088,0.00012329,2]
[353820226,1740077453762,-320.92458412,0.00012329,2]
[353820227,1740077453773,-409.503675,0.00012329,2]
[353820228,1740077453783,-53.66092175,0.00012329,2]
[353820231,1740077453849,-500.0,0.00010958,2]
[353820233,1740077453859,-500.0,0.00010958,2]
[353820235,1740077453869,-355.84275325,0.00012329,2]
[353820237,1740077453878,-409.503675,0.00012329,2]
[353820239,1740077453888,-409.503675,0.00012329,2]
[353820241,1740077453897,-409.503675,0.00012329,2]
[353820244,1740077453908,-409.503675,0.00012329,2]
[353820245,1740077453917,-409.503675,0.00012329,2]
[353820248,1740077453927,-409.503675,0.00012329,2]
[353820250,1740077453937,-409.503675,0.00012329,2]
[353820252,1740077453947,-409.503675,0.00012329,2]
[353820254,1740077453956,-409.503675,0.00012329,2]
[353820256,1740077453966,-409.503675,0.00012329,2]
[353820258,1740077453975,-409.503675,0.00012329,2]
[353820260,1740077453984,-409.503675,0.00012329,2]
[353820262,1740077453994,-409.503675,0.00012329,2]
[353820264,1740077454004,-409.503675,0.00012329,2]
[353820266,1740077454014,-409.503675,0.00012329,2]
[353820268,1740077454024,-409.503675,0.00012329,2]
[353820270,1740077454035,-409.503675,0.00012329,2]
[353820272,1740077454046,-151.0,0.00012329,2]
[353820274,1740077454057,-151.0,0.00012329,2]
[353820276,1740077454066,-151.0,0.00012329,2]
[353820278,1740077454075,-151.0,0.00012329,2]
[353820280,1740077454084,-166.36894,0.00012329,2]
[353820282,1740077454094,-159.300472,0.00012329,2]
[353820284,1740077454103,-159.300472,0.00012329,2]
[353820286,1740077454114,-159.300472,0.00012329,2]
[353820288,1740077454123,-159.300472,0.00012329,2]
[353820290,1740077454133,-159.300472,0.00012329,2]
[353820292,1740077454142,-159.300472,0.00012329,2]
[353820294,1740077454151,-159.300472,0.00012329,2]
[353820296,1740077454161,-159.300472,0.00012329,2]
[353820298,1740077454171,-159.300472,0.00012329,2]
[353820300,1740077454180,-151.0,0.00012329,2]
[353820302,1740077454190,-159.300472,0.00012329,2]
[353820304,1740077454199,-151.0,0.00012329,2]
[353820306,1740077454209,-159.30047,0.00012329,2]
[353820308,1740077454218,-151.0,0.00012329,2]
[353820310,1740077454227,-231.561099,0.00012329,2]
[353820312,1740077454236,-151.0,0.00012329,2]
[353820314,1740077454247,-151.308504,0.00012329,2]
[353820316,1740077454256,-151.0,0.00012329,2]
[353820318,1740077454265,-151.0,0.00012329,2]
[353820320,1740077454275,-151.0,0.00012329,2]
[353820322,1740077454285,-151.0,0.00012329,2]
[353820324,1740077454294,-151.0,0.00012329,2]
[353820326,1740077454304,-151.0,0.00012329,2]
[353820328,1740077454313,-151.0,0.00012329,2]
[353820330,1740077454322,-151.0,0.00012329,2]
[353820332,1740077454331,-284.432404,0.00012329,2]
[353820334,1740077454340,-151.0,0.00012329,2]
[353820336,1740077454350,-151.0,0.00012329,2]
[353820338,1740077454359,-151.0,0.00012329,2]
[353820340,1740077454368,-151.0,0.00012329,2]
[353820342,1740077454378,-151.0,0.00012329,2]
[353820344,1740077454387,-151.0,0.00012329,2]
[353820346,1740077454397,-151.0,0.00012329,2]
[353820348,1740077454407,-151.0,0.00012329,2]
[353820350,1740077454417,-151.0,0.00012329,2]
[353820352,1740077454426,-151.0,0.00012329,2]
[353820354,1740077454435,-151.0,0.00012329,2]
[353820356,1740077454444,-151.0,0.00012329,2]
[353820358,1740077454454,-151.0,0.00012329,2]
[353820360,1740077454464,-197.115721,0.00012329,2]
[353820362,1740077454473,-151.0,0.00012329,2]
[353820364,1740077454483,-151.688301,0.00012329,2]
[353820366,1740077454492,-151.0,0.00012329,2]
[353820368,1740077454502,-151.0,0.00012329,2]
[353820370,1740077454511,-151.480757,0.00012329,2]
[353820372,1740077454522,-151.0,0.00012329,2]
[353820374,1740077454532,-151.0,0.00012329,2]
[353820376,1740077454541,-151.675286,0.00012329,2]
[353820378,1740077454551,-151.0,0.00012329,2]
[353820380,1740077454561,-151.0,0.00012329,2]
[353820382,1740077454570,-216.762808,0.00012329,2]
[353820384,1740077454580,-266.9819,0.00012329,2]
[353820386,1740077454589,-280.695596,0.00012329,2]
[353820388,1740077454599,-280.695596,0.00012329,2]
[353820390,1740077454609,-280.695596,0.00012329,2]
[353820392,1740077454618,-280.695596,0.00012329,2]
[353820394,1740077454628,-280.695596,0.00012329,2]
[353820396,1740077454637,-280.695596,0.00012329,2]
[353820398,1740077454647,-280.695596,0.00012329,2]
[353820400,1740077454657,-280.695596,0.00012329,2]
[353820402,1740077454667,-280.695596,0.00012329,2]
[353820404,1740077454677,-280.695596,0.00012329,2]
[353820406,1740077454687,-280.695596,0.00012329,2]
[353820409,1740077454697,-280.695596,0.00012329,2]
[353820410,1740077454707,-280.695596,0.00012329,2]
[353820412,1740077454716,-280.695596,0.00012329,2]
[353820415,1740077454727,-151.0,0.00012329,2]
[353820417,1740077454737,-151.0,0.00012329,2]
[353820419,1740077454746,-151.0,0.00012329,2]
[353820421,1740077454756,-152.001688,0.00012329,2]
[353820423,1740077454767,-218.53958,0.00012329,2]
[353820425,1740077454779,-218.53958,0.00012329,2]
[353820426,1740077454789,-218.53958,0.00012329,2]
[353820429,1740077454799,-218.53958,0.00012329,2]
[353820431,1740077454809,-218.53958,0.00012329,2]
[353820433,1740077454819,-218.53958,0.00012329,2]
[353820435,1740077454829,-218.53958,0.00012329,2]
[353820437,1740077454839,-218.53958,0.00012329,2]
[353820439,1740077454848,-218.53958,0.00012329,2]
[353820441,1740077454858,-218.53958,0.00012329,2]
[353820443,1740077454867,-218.53958,0.00012329,2]
[353820445,1740077454877,-218.53958,0.00012329,2]
[353820447,1740077454887,-218.53958,0.00012329,2]
[353820449,1740077454896,-218.53958,0.00012329,2]
[353820451,1740077454906,-151.0,0.00012329,2]
[353820453,1740077454915,-151.0,0.00012329,2]
[353820454,1740077454926,-151.0,0.00012329,2]
[353820457,1740077454936,-151.0,0.00012329,2]
[353820459,1740077454946,-208.088624,0.00012329,2]
[353820461,1740077454956,-151.0,0.00012329,2]
[353820462,1740077454966,-151.0,0.00012329,2]
[353820465,1740077454976,-152.374458,0.00012329,2]
[353820467,1740077454987,-151.0,0.00012329,2]
[353820469,1740077454997,-151.0,0.00012329,2]
[353820471,1740077455007,-151.0,0.00012329,2]
[353820473,1740077455020,-151.0,0.00012329,2]
[353820475,1740077455030,-190.131182,0.00012329,2]
[353820477,1740077455045,-190.131182,0.00012329,2]
[353820479,1740077455055,-190.131182,0.00012329,2]